[Event "Titled Tuesday Blitz January 03 Early 2023"]
[White "Khubukshanov, Erdem"]
[Black "Gjestemoen-VonHirsch, Andre"]
[WhiteFideId "54114527"]
[BlackFideId "1539531"]
[WhiteElo "2382"]
[BlackElo "2314"]
[Result "1-0"]
[Round "03"]
[TimeControl "180+2"]
[Date "2023.01.03"]
[WhiteClock "0:00:04"]
[BlackClock "0:00:05"]

1. b3 {[%clk 0:03:00]}  Nf6 {[%clk 0:02:48]} 2. Bb2 {[%clk 0:03:00]}  g6 {[%clk 0:02:47]} 3. Nf3 {[%clk 0:02:56]}  Bg7 {[%clk 0:02:47]} 4. g3 {[%clk 0:02:56]}  O-O {[%clk 0:02:47]} 5. Bg2 {[%clk 0:02:55]}  d5 {[%clk 0:02:47]} 6. O-O {[%clk 0:02:55]}  c6 {[%clk 0:02:47]} 7. c4 {[%clk 0:02:54]}  a5 {[%clk 0:02:46]} 8. a4 {[%clk 0:02:46]}  Na6 {[%clk 0:02:44]} 9. d4 {[%clk 0:02:39]}  Nb4 {[%clk 0:02:41]} 10. Nbd2 {[%clk 0:02:34]}  Bf5 {[%clk 0:02:40]} 11. Nh4 {[%clk 0:02:23]}  Bc2 {[%clk 0:02:27]} 12. Qc1 {[%clk 0:02:23]}  Ne8 {[%clk 0:02:01]} 13. Bc3 {[%clk 0:02:12]}  Bf5 {[%clk 0:01:58]} 14. Nxf5 {[%clk 0:01:48]}  gxf5 {[%clk 0:01:59]} 15. e3 {[%clk 0:01:48]}  e6 {[%clk 0:01:44]} 16. Nf3 {[%clk 0:01:31]}  Nd6 {[%clk 0:01:41]} 17. Qb1 {[%clk 0:01:17]}  Ne4 {[%clk 0:01:33]} 18. Be1 {[%clk 0:01:15]}  c5 {[%clk 0:01:01]} 19. Qd1 {[%clk 0:00:44]}  Qe7 {[%clk 0:00:32]} 20. cxd5 {[%clk 0:00:34]}  Nxd5 {[%clk 0:00:29]} 21. Rc1 {[%clk 0:00:30]}  Rac8 {[%clk 0:00:25]} 22. Bxa5 {[%clk 0:00:28]}  cxd4 {[%clk 0:00:16]} 23. Nxd4 {[%clk 0:00:25]}  Qa3 {[%clk 0:00:07]} 24. Ra1 {[%clk 0:00:16]}  Qb2 {[%clk 0:00:05]} 25. Qd3 {[%clk 0:00:15]}  Nxf2 {[%clk 0:00:04]} 26. Qe2 {[%clk 0:00:10]}  Qxe2 {[%clk 0:00:04]} 27. Nxe2 {[%clk 0:00:11]}  Ng4 {[%clk 0:00:04]} 28. e4 {[%clk 0:00:11]}  fxe4 {[%clk 0:00:04]} 29. Bxe4 {[%clk 0:00:11]}  Bxa1 {[%clk 0:00:04]} 30. Rxa1 {[%clk 0:00:11]}  Nge3 {[%clk 0:00:05]} 31. Nd4 {[%clk 0:00:08]}  Rfe8 {[%clk 0:00:05]} 32. Nf3 {[%clk 0:00:06]}  f5 {[%clk 0:00:05]} 33. Bd3 {[%clk 0:00:06]}  Nc2 {[%clk 0:00:05]} 34. Rd1 {[%clk 0:00:04]}  Nce3 {[%clk 0:00:05]} 35. Re1 {[%clk 0:00:04]}  Re7 {[%clk 0:00:04]} 36. Nd4 {[%clk 0:00:02]}  e5 {[%clk 0:00:01]} 37. Nxf5 {[%clk 0:00:02]}  Nxf5 {[%clk 0:00:02]} 38. Bxf5 {[%clk 0:00:03]}  Rce8 {[%clk 0:00:03]} 39. Be4 {[%clk 0:00:04]}  Nf6 {[%clk 0:00:03]} 40. Bf5 {[%clk 0:00:04]}  e4 {[%clk 0:00:03]} 41. Bc3 {[%clk 0:00:05]}  Kg7 {[%clk 0:00:03]} 42. Rf1 {[%clk 0:00:05]}  Rf7 {[%clk 0:00:03]} 43. Bg4 {[%clk 0:00:04]}  e3 {[%clk 0:00:04]} 44. Bh5 {[%clk 0:00:04]}  e2 {[%clk 0:00:03]} 45. Re1 {[%clk 0:00:05]}  Re6 {[%clk 0:00:01]} 46. Bxf7 {[%clk 0:00:05]}  Kxf7 {[%clk 0:00:02]} 47. Kf2 {[%clk 0:00:06]}  Ne4+ {[%clk 0:00:03]} 48. Kf3 {[%clk 0:00:07]}  Nxc3 {[%clk 0:00:03]} 49. Kf2 {[%clk 0:00:07]}  Nd5 {[%clk 0:00:04]} 50. Rxe2 {[%clk 0:00:07]}  Rxe2+ {[%clk 0:00:05]} 51. Kxe2 {[%clk 0:00:08]}  Nb4 {[%clk 0:00:05]} 52. Kd2 {[%clk 0:00:08]}  Nc6 {[%clk 0:00:06]} 53. Kc3 {[%clk 0:00:09]}  Ke6 {[%clk 0:00:07]} 54. Kc4 {[%clk 0:00:09]}  Kd6 {[%clk 0:00:07]} 55. b4 {[%clk 0:00:10]}  Ne5+ {[%clk 0:00:07]} 56. Kb5 {[%clk 0:00:10]}  Kc7 {[%clk 0:00:07]} 57. Kc5 {[%clk 0:00:10]}  Nd3+ {[%clk 0:00:07]} 58. Kc4 {[%clk 0:00:10]}  Ne1 {[%clk 0:00:07]} 59. Kd5 {[%clk 0:00:09]}  Nf3 {[%clk 0:00:08]} 60. h3 {[%clk 0:00:09]}  Ng5 {[%clk 0:00:08]} 61. h4 {[%clk 0:00:09]}  Nf7 {[%clk 0:00:07]} 62. g4 {[%clk 0:00:09]}  Nd6 {[%clk 0:00:07]} 63. g5 {[%clk 0:00:08]}  Kd7 {[%clk 0:00:07]} 64. h5 {[%clk 0:00:08]}  Nf7 {[%clk 0:00:06]} 65. g6 {[%clk 0:00:07]}  hxg6 {[%clk 0:00:07]} 66. hxg6 {[%clk 0:00:08]}  Nh6 {[%clk 0:00:07]} 67. a5 {[%clk 0:00:06]}  Ng8 {[%clk 0:00:07]} 68. b5 {[%clk 0:00:06]}  Ne7+ {[%clk 0:00:08]} 69. Kc5 {[%clk 0:00:07]}  Kc7 {[%clk 0:00:08]} 70. g7 {[%clk 0:00:06]}  Ng8 {[%clk 0:00:08]} 71. Kd5 {[%clk 0:00:05]}  Kd7 {[%clk 0:00:05]} 72. Ke5 {[%clk 0:00:04]}  Ke7 {[%clk 0:00:05]} 73. a6 {[%clk 0:00:01]}  bxa6 {[%clk 0:00:05]} 74. bxa6 {[%clk 0:00:02]}  Nf6 {[%clk 0:00:04]} 75. a7 {[%clk 0:00:03]}  Nd7+ {[%clk 0:00:04]} 76. Kf5 {[%clk 0:00:04]}  Nb6 {[%clk 0:00:05]} 77. g8=Q {[%clk 0:00:04]} 1-0


[Site "https://www.chess.com"]

[Event "Titled Tuesday Blitz January 03 Early 2023"]
[White "Murzin, Volodar"]
[Black "Lacasa Diaz, Jose Antonio"]
[WhiteFideId "44155573"]
[BlackFideId "2203375"]
[WhiteElo "2604"]
[BlackElo "2359"]
[Result "0-1"]
[Round "03"]
[TimeControl "180+2"]
[Date "2023.01.03"]
[WhiteClock "0:00:20"]
[BlackClock "0:00:12"]

1. e4 {[%clk 0:02:50]}  c5 {[%clk 0:02:58]} 2. Nf3 {[%clk 0:02:49]}  g6 {[%clk 0:02:57]} 3. d4 {[%clk 0:02:48]}  cxd4 {[%clk 0:02:58]} 4. Qxd4 {[%clk 0:02:47]}  Nf6 {[%clk 0:02:57]} 5. e5 {[%clk 0:02:47]}  Nc6 {[%clk 0:02:58]} 6. Qf4 {[%clk 0:02:43]}  Nd5 {[%clk 0:02:55]} 7. Qe4 {[%clk 0:02:44]}  Nb6 {[%clk 0:02:53]} 8. c4 {[%clk 0:02:41]}  d5 {[%clk 0:02:32]} 9. exd6 {[%clk 0:02:34]}  Bf5 {[%clk 0:02:30]} 10. Qe3 {[%clk 0:02:28]}  Bg7 {[%clk 0:02:17]} 11. dxe7 {[%clk 0:02:18]}  Nxe7 {[%clk 0:02:06]} 12. Be2 {[%clk 0:02:15]}  O-O {[%clk 0:02:03]} 13. O-O {[%clk 0:02:15]}  Re8 {[%clk 0:02:03]} 14. Qd2 {[%clk 0:02:10]}  Qc7 {[%clk 0:01:58]} 15. Nc3 {[%clk 0:02:07]}  Nxc4 {[%clk 0:01:51]} 16. Bxc4 {[%clk 0:02:05]}  Qxc4 {[%clk 0:01:51]} 17. Qf4 {[%clk 0:02:03]}  Rac8 {[%clk 0:01:39]} 18. Qxc4 {[%clk 0:01:59]}  Rxc4 {[%clk 0:01:39]} 19. Bd2 {[%clk 0:02:00]}  Nc6 {[%clk 0:01:30]} 20. Rfe1 {[%clk 0:01:57]}  Rd8 {[%clk 0:01:30]} 21. Rad1 {[%clk 0:01:51]}  Bg4 {[%clk 0:01:15]} 22. Bg5 {[%clk 0:01:20]}  Rxd1 {[%clk 0:01:14]} 23. Nxd1 {[%clk 0:01:21]}  f6 {[%clk 0:01:03]} 24. Ne3 {[%clk 0:01:12]}  Rc5 {[%clk 0:00:44]} 25. Bf4 {[%clk 0:00:57]}  Bxf3 {[%clk 0:00:44]} 26. gxf3 {[%clk 0:00:58]}  Nd4 {[%clk 0:00:44]} 27. Kg2 {[%clk 0:00:54]}  Bf8 {[%clk 0:00:30]} 28. Rd1 {[%clk 0:00:52]}  Ne6 {[%clk 0:00:28]} 29. Bb8 {[%clk 0:00:50]}  a6 {[%clk 0:00:25]} 30. Rd7 {[%clk 0:00:50]}  Rg5+ {[%clk 0:00:23]} 31. Kf1 {[%clk 0:00:48]}  Nc5 {[%clk 0:00:22]} 32. Rd8 {[%clk 0:00:43]}  Kf7 {[%clk 0:00:22]} 33. f4 {[%clk 0:00:37]}  Rh5 {[%clk 0:00:22]} 34. f5 {[%clk 0:00:36]}  gxf5 {[%clk 0:00:20]} 35. Rc8 {[%clk 0:00:23]}  Ne6 {[%clk 0:00:16]} 36. Nd5 {[%clk 0:00:20]}  b5 {[%clk 0:00:12]} 0-1


[Site "https://www.chess.com"]

[Event "Titled Tuesday Blitz January 03 Early 2023"]
[White "Petrova, Irina"]
[Black "Abdilkhair, Abilmansur"]
[WhiteFideId "14124122"]
[BlackFideId "13716417"]
[WhiteElo "2108"]
[BlackElo "2268"]
[Result "0-1"]
[Round "03"]
[TimeControl "180+2"]
[Date "2023.01.03"]
[WhiteClock "0:01:34"]
[BlackClock "0:00:38"]

1. e4 {[%clk 0:03:00]}  e5 {[%clk 0:02:57]} 2. Nf3 {[%clk 0:03:00]}  Nc6 {[%clk 0:02:58]} 3. Bb5 {[%clk 0:03:00]}  a6 {[%clk 0:02:58]} 4. Ba4 {[%clk 0:03:00]}  Nf6 {[%clk 0:02:59]} 5. Bxc6 {[%clk 0:03:00]}  dxc6 {[%clk 0:02:58]} 6. d3 {[%clk 0:03:01]}  Bd6 {[%clk 0:02:39]} 7. Nbd2 {[%clk 0:03:00]}  Be6 {[%clk 0:02:36]} 8. b3 {[%clk 0:03:00]}  Nd7 {[%clk 0:02:34]} 9. Bb2 {[%clk 0:03:00]}  Qe7 {[%clk 0:02:30]} 10. Nc4 {[%clk 0:02:55]}  Bxc4 {[%clk 0:02:28]} 11. bxc4 {[%clk 0:02:55]}  O-O-O {[%clk 0:02:25]} 12. O-O {[%clk 0:02:54]}  f6 {[%clk 0:02:20]} 13. Rb1 {[%clk 0:02:51]}  g5 {[%clk 0:02:14]} 14. Bc3 {[%clk 0:02:49]}  Nc5 {[%clk 0:02:02]} 15. Qc1 {[%clk 0:02:43]}  h5 {[%clk 0:01:38]} 16. Qb2 {[%clk 0:02:41]}  b6 {[%clk 0:01:35]} 17. Bb4 {[%clk 0:02:40]}  Ne6 {[%clk 0:01:30]} 18. Bxd6 {[%clk 0:02:38]}  Qxd6 {[%clk 0:01:30]} 19. a4 {[%clk 0:02:35]}  a5 {[%clk 0:01:29]} 20. Qb3 {[%clk 0:02:18]}  h4 {[%clk 0:01:23]} 21. Nd2 {[%clk 0:02:16]}  g4 {[%clk 0:01:23]} 22. c5 {[%clk 0:02:11]}  Nxc5 {[%clk 0:01:18]} 23. Qa3 {[%clk 0:02:05]}  g3 {[%clk 0:01:13]} 24. Nc4 {[%clk 0:02:00]}  Qd4 {[%clk 0:01:08]} 25. c3 {[%clk 0:01:50]}  Qxd3 {[%clk 0:01:04]} 26. Nxa5 {[%clk 0:01:50]}  h3 {[%clk 0:00:44]} 27. hxg3 {[%clk 0:01:44]}  hxg2 {[%clk 0:00:43]} 28. Kxg2 {[%clk 0:01:44]}  Rh2+ {[%clk 0:00:40]} 29. Kxh2 {[%clk 0:01:42]}  Qf3 {[%clk 0:00:41]} 30. Kg1 {[%clk 0:01:34]}  Rh8 {[%clk 0:00:38]} 0-1


[Site "https://www.chess.com"]

[Event "Titled Tuesday Blitz January 03 Early 2023"]
[White "Dardha, Arben"]
[Black "Saravana, Krishnan P."]
[WhiteFideId "4700481"]
[BlackFideId "5018382"]
[WhiteElo "2262"]
[BlackElo "2284"]
[Result "1-0"]
[Round "03"]
[TimeControl "180+2"]
[Date "2023.01.03"]
[WhiteClock "0:00:13"]
[BlackClock "0:00:02"]

1. e4 {[%clk 0:02:43]}  Nc6 {[%clk 0:02:56]} 2. d4 {[%clk 0:02:40]}  e5 {[%clk 0:02:56]} 3. dxe5 {[%clk 0:02:40]}  Nxe5 {[%clk 0:02:55]} 4. f4 {[%clk 0:02:41]}  Ng6 {[%clk 0:02:55]} 5. Nf3 {[%clk 0:02:41]}  Nf6 {[%clk 0:02:55]} 6. f5 {[%clk 0:02:41]}  Ne7 {[%clk 0:02:42]} 7. e5 {[%clk 0:02:39]}  Nfd5 {[%clk 0:02:40]} 8. Bc4 {[%clk 0:02:30]}  Nb6 {[%clk 0:02:35]} 9. Bxf7+ {[%clk 0:02:28]}  Kxf7 {[%clk 0:02:33]} 10. Ng5+ {[%clk 0:02:28]}  Kg8 {[%clk 0:02:26]} 11. O-O {[%clk 0:01:56]}  h6 {[%clk 0:01:53]} 12. f6 {[%clk 0:01:47]}  gxf6 {[%clk 0:01:52]} 13. exf6 {[%clk 0:01:47]}  hxg5 {[%clk 0:01:45]} 14. Bxg5 {[%clk 0:01:42]}  Rh7 {[%clk 0:01:22]} 15. Qg4 {[%clk 0:01:35]}  d5 {[%clk 0:01:12]} 16. Qg3 {[%clk 0:01:09]}  Qd7 {[%clk 0:00:18]} 17. fxe7 {[%clk 0:01:00]}  Bg7 {[%clk 0:00:18]} 18. Nc3 {[%clk 0:00:56]}  Qe8 {[%clk 0:00:16]} 19. Rae1 {[%clk 0:00:47]}  Bd7 {[%clk 0:00:16]} 20. Bh6 {[%clk 0:00:39]}  Rxh6 {[%clk 0:00:14]} 21. Rf8+ {[%clk 0:00:39]}  Qxf8 {[%clk 0:00:14]} 22. exf8=Q+ {[%clk 0:00:40]}  Rxf8 {[%clk 0:00:14]} 23. Qxc7 {[%clk 0:00:39]}  Rf7 {[%clk 0:00:11]} 24. Qd8+ {[%clk 0:00:37]}  Kh7 {[%clk 0:00:11]} 25. Qg5 {[%clk 0:00:37]}  Rg6 {[%clk 0:00:11]} 26. Qh5+ {[%clk 0:00:36]}  Bh6 {[%clk 0:00:11]} 27. h3 {[%clk 0:00:33]}  Rfg7 {[%clk 0:00:11]} 28. Re2 {[%clk 0:00:33]}  d4 {[%clk 0:00:10]} 29. Ne4 {[%clk 0:00:32]}  Nc4 {[%clk 0:00:10]} 30. Qh4 {[%clk 0:00:31]}  d3 {[%clk 0:00:07]} 31. cxd3 {[%clk 0:00:30]}  Ne3 {[%clk 0:00:07]} 32. Nf6+ {[%clk 0:00:30]}  Rxf6 {[%clk 0:00:07]} 33. Qxf6 {[%clk 0:00:30]}  Bc6 {[%clk 0:00:08]} 34. Rxe3 {[%clk 0:00:29]}  Bxe3+ {[%clk 0:00:07]} 35. Kf1 {[%clk 0:00:29]}  Bh6 {[%clk 0:00:07]} 36. Qf5+ {[%clk 0:00:29]}  Rg6 {[%clk 0:00:07]} 37. h4 {[%clk 0:00:27]}  Bxg2+ {[%clk 0:00:05]} 38. Kf2 {[%clk 0:00:26]}  Kg7 {[%clk 0:00:05]} 39. Qd7+ {[%clk 0:00:25]}  Kf6 {[%clk 0:00:05]} 40. Qd6+ {[%clk 0:00:22]}  Kf5 {[%clk 0:00:05]} 41. Qd7+ {[%clk 0:00:21]}  Kf6 {[%clk 0:00:03]} 42. Qd8+ {[%clk 0:00:21]}  Kf5 {[%clk 0:00:03]} 43. h5 {[%clk 0:00:19]}  Rf6 {[%clk 0:00:03]} 44. Kxg2 {[%clk 0:00:18]}  Kg5 {[%clk 0:00:04]} 45. Qg8+ {[%clk 0:00:18]}  Kxh5 {[%clk 0:00:04]} 46. Qe8+ {[%clk 0:00:15]}  Kg5 {[%clk 0:00:03]} 47. Kg3 {[%clk 0:00:14]}  Rg6 {[%clk 0:00:02]} 48. Qe5# {[%clk 0:00:13]} 1-0


[Site "https://www.chess.com"]

[Event "Titled Tuesday Blitz January 03 Early 2023"]
[White "Zaichenko, Daria"]
[Black "Melian, Juan Sebastian"]
[WhiteFideId "4197453"]
[BlackFideId "3706575"]
[WhiteElo "2104"]
[BlackElo "2293"]
[Result "0-1"]
[Round "03"]
[TimeControl "180+2"]
[Date "2023.01.03"]
[WhiteClock "0:00:03"]
[BlackClock "0:00:03"]

1. e4 {[%clk 0:02:59]}  h6 {[%clk 0:03:00]} 2. d4 {[%clk 0:02:56]}  d6 {[%clk 0:02:58]} 3. f4 {[%clk 0:02:55]}  e6 {[%clk 0:02:53]} 4. Nf3 {[%clk 0:02:55]}  Ne7 {[%clk 0:02:51]} 5. Bd3 {[%clk 0:02:54]}  Nd7 {[%clk 0:02:50]} 6. c4 {[%clk 0:02:51]}  b6 {[%clk 0:02:47]} 7. Nc3 {[%clk 0:02:51]}  Bb7 {[%clk 0:02:47]} 8. Be3 {[%clk 0:02:50]}  a6 {[%clk 0:02:48]} 9. O-O {[%clk 0:02:49]}  g6 {[%clk 0:02:48]} 10. b4 {[%clk 0:02:40]}  Bg7 {[%clk 0:02:48]} 11. Rc1 {[%clk 0:02:37]}  O-O {[%clk 0:02:33]} 12. f5 {[%clk 0:02:35]}  exf5 {[%clk 0:02:31]} 13. exf5 {[%clk 0:02:35]}  c5 {[%clk 0:02:25]} 14. Ne4 {[%clk 0:02:21]}  Nxf5 {[%clk 0:02:22]} 15. Bf4 {[%clk 0:02:15]}  Nf6 {[%clk 0:01:46]} 16. d5 {[%clk 0:02:03]}  Nh5 {[%clk 0:01:29]} 17. Bd2 {[%clk 0:01:51]}  Nd4 {[%clk 0:01:23]} 18. g4 {[%clk 0:01:46]}  Nf6 {[%clk 0:00:53]} 19. Nxd4 {[%clk 0:01:33]}  Nxe4 {[%clk 0:00:48]} 20. Bxe4 {[%clk 0:01:14]}  Bxd4+ {[%clk 0:00:46]} 21. Kh1 {[%clk 0:01:14]}  Bg7 {[%clk 0:00:41]} 22. bxc5 {[%clk 0:01:08]}  bxc5 {[%clk 0:00:42]} 23. Qf3 {[%clk 0:01:01]}  Qd7 {[%clk 0:00:32]} 24. Rce1 {[%clk 0:00:58]}  Rae8 {[%clk 0:00:31]} 25. Qg2 {[%clk 0:00:44]}  Re7 {[%clk 0:00:27]} 26. h4 {[%clk 0:00:29]}  Rfe8 {[%clk 0:00:18]} 27. h5 {[%clk 0:00:26]}  g5 {[%clk 0:00:13]} 28. Bf5 {[%clk 0:00:22]}  Qd8 {[%clk 0:00:13]} 29. Rxe7 {[%clk 0:00:19]}  Rxe7 {[%clk 0:00:14]} 30. Qf3 {[%clk 0:00:17]}  Bc8 {[%clk 0:00:13]} 31. Ba5 {[%clk 0:00:11]}  Qe8 {[%clk 0:00:11]} 32. Bb1 {[%clk 0:00:07]}  Re3 {[%clk 0:00:09]} 33. Qf2 {[%clk 0:00:03]}  f5 {[%clk 0:00:03]} 0-1


[Site "https://www.chess.com"]

[Event "Titled Tuesday Blitz January 03 Early 2023"]
[White "Horobetz, Graham"]
[Black "Vifleemskaia, Svetlana"]
[WhiteFideId "2047322"]
[BlackFideId "4129490"]
[WhiteElo "2140"]
[BlackElo "1971"]
[Result "1-0"]
[Round "03"]
[TimeControl "180+2"]
[Date "2023.01.03"]
[WhiteClock "0:01:17"]
[BlackClock "0:00:06"]

1. e4 {[%clk 0:03:00]}  e5 {[%clk 0:02:58]} 2. Nf3 {[%clk 0:03:00]}  Nc6 {[%clk 0:02:58]} 3. Bb5 {[%clk 0:03:00]}  a6 {[%clk 0:02:58]} 4. Ba4 {[%clk 0:03:00]}  Nf6 {[%clk 0:02:58]} 5. O-O {[%clk 0:03:01]}  Be7 {[%clk 0:02:58]} 6. Re1 {[%clk 0:03:01]}  b5 {[%clk 0:02:58]} 7. Bb3 {[%clk 0:03:02]}  d6 {[%clk 0:02:59]} 8. c3 {[%clk 0:03:03]}  O-O {[%clk 0:02:59]} 9. a4 {[%clk 0:03:03]}  Bb7 {[%clk 0:02:58]} 10. d3 {[%clk 0:03:03]}  Na5 {[%clk 0:02:54]} 11. Bc2 {[%clk 0:03:04]}  c5 {[%clk 0:02:54]} 12. Nbd2 {[%clk 0:03:04]}  Nc6 {[%clk 0:02:54]} 13. Nf1 {[%clk 0:03:04]}  g6 {[%clk 0:02:53]} 14. Bh6 {[%clk 0:03:00]}  Re8 {[%clk 0:02:53]} 15. axb5 {[%clk 0:02:59]}  axb5 {[%clk 0:02:53]} 16. Rxa8 {[%clk 0:03:00]}  Bxa8 {[%clk 0:02:50]} 17. Bb3 {[%clk 0:02:57]}  Na5 {[%clk 0:02:43]} 18. Ba2 {[%clk 0:02:57]}  Ng4 {[%clk 0:02:25]} 19. Be3 {[%clk 0:02:43]}  Nxe3 {[%clk 0:02:24]} 20. Nxe3 {[%clk 0:02:43]}  Bf8 {[%clk 0:02:21]} 21. Bd5 {[%clk 0:02:33]}  Bg7 {[%clk 0:02:15]} 22. Qa1 {[%clk 0:02:27]}  Bh6 {[%clk 0:01:48]} 23. Bxa8 {[%clk 0:02:26]}  Qxa8 {[%clk 0:01:45]} 24. Nd5 {[%clk 0:02:27]}  Nb3 {[%clk 0:01:30]} 25. Qd1 {[%clk 0:02:19]}  Qa2 {[%clk 0:01:07]} 26. Nf6+ {[%clk 0:02:18]}  Kf8 {[%clk 0:01:06]} 27. Nxe8 {[%clk 0:02:18]}  Kxe8 {[%clk 0:01:07]} 28. Qb1 {[%clk 0:02:19]}  Qa4 {[%clk 0:01:01]} 29. Qc2 {[%clk 0:02:17]}  Ke7 {[%clk 0:00:53]} 30. d4 {[%clk 0:01:59]}  exd4 {[%clk 0:00:46]} 31. cxd4 {[%clk 0:01:58]}  c4 {[%clk 0:00:24]} 32. e5 {[%clk 0:01:55]}  d5 {[%clk 0:00:21]} 33. e6 {[%clk 0:01:45]}  f6 {[%clk 0:00:20]} 34. h4 {[%clk 0:01:33]}  b4 {[%clk 0:00:19]} 35. h5 {[%clk 0:01:33]}  Qe8 {[%clk 0:00:13]} 36. Nh4 {[%clk 0:01:27]}  f5 {[%clk 0:00:11]} 37. Qd1 {[%clk 0:01:18]}  Bf4 {[%clk 0:00:07]} 38. Qf3 {[%clk 0:01:17]}  Bd6 {[%clk 0:00:06]} 39. Qxd5 {[%clk 0:01:17]} 1-0


[Site "https://www.chess.com"]

[Event "Titled Tuesday Blitz January 03 Early 2023"]
[White "Babikov, Ivan"]
[Black "Garv Gaur"]
[WhiteFideId "4161106"]
[BlackFideId "45030839"]
[WhiteElo "2239"]
[BlackElo "2006"]
[Result "1-0"]
[Round "03"]
[TimeControl "180+2"]
[Date "2023.01.03"]
[WhiteClock "0:00:08"]
[BlackClock "0:00:21"]

1. d4 {[%clk 0:02:59]}  Nf6 {[%clk 0:02:59]} 2. Nf3 {[%clk 0:02:59]}  d5 {[%clk 0:02:58]} 3. Bg5 {[%clk 0:03:00]}  c5 {[%clk 0:02:56]} 4. e3 {[%clk 0:02:58]}  Ne4 {[%clk 0:02:51]} 5. Bf4 {[%clk 0:02:57]}  Nc6 {[%clk 0:02:50]} 6. c3 {[%clk 0:02:57]}  Bf5 {[%clk 0:02:49]} 7. Bd3 {[%clk 0:02:55]}  e6 {[%clk 0:02:48]} 8. O-O {[%clk 0:02:55]}  Bd6 {[%clk 0:02:47]} 9. Bxd6 {[%clk 0:02:48]}  Qxd6 {[%clk 0:02:48]} 10. dxc5 {[%clk 0:02:47]}  Qxc5 {[%clk 0:02:47]} 11. Nd4 {[%clk 0:02:37]}  Bg6 {[%clk 0:02:45]} 12. Na3 {[%clk 0:02:34]}  O-O {[%clk 0:02:44]} 13. Nac2 {[%clk 0:02:32]}  Rfd8 {[%clk 0:02:39]} 14. Qe2 {[%clk 0:02:28]}  e5 {[%clk 0:02:37]} 15. Nxc6 {[%clk 0:02:28]}  bxc6 {[%clk 0:02:37]} 16. f3 {[%clk 0:02:24]}  Nd6 {[%clk 0:02:34]} 17. Bxg6 {[%clk 0:02:24]}  hxg6 {[%clk 0:02:35]} 18. Nb4 {[%clk 0:02:12]}  Nf5 {[%clk 0:02:27]} 19. Rfe1 {[%clk 0:02:08]}  a5 {[%clk 0:02:24]} 20. Nd3 {[%clk 0:02:06]}  Qe7 {[%clk 0:02:23]} 21. e4 {[%clk 0:02:04]}  dxe4 {[%clk 0:02:22]} 22. fxe4 {[%clk 0:02:04]}  Nd6 {[%clk 0:02:19]} 23. Rad1 {[%clk 0:02:01]}  a4 {[%clk 0:02:19]} 24. Nb4 {[%clk 0:01:58]}  Qc7 {[%clk 0:02:16]} 25. Rd2 {[%clk 0:01:45]}  a3 {[%clk 0:02:11]} 26. b3 {[%clk 0:01:44]}  Nb5 {[%clk 0:02:11]} 27. Qe3 {[%clk 0:01:26]}  Rxd2 {[%clk 0:02:03]} 28. Qxd2 {[%clk 0:01:27]}  Rd8 {[%clk 0:02:03]} 29. Qe3 {[%clk 0:01:19]}  Qd6 {[%clk 0:02:00]} 30. h3 {[%clk 0:01:02]}  Qd2 {[%clk 0:01:50]} 31. Nxc6 {[%clk 0:00:50]}  Qxe3+ {[%clk 0:01:49]} 32. Rxe3 {[%clk 0:00:50]}  Rd2 {[%clk 0:01:49]} 33. Nb4 {[%clk 0:00:48]}  Rd1+ {[%clk 0:01:42]} 34. Kh2 {[%clk 0:00:48]}  Rc1 {[%clk 0:01:42]} 35. c4 {[%clk 0:00:44]}  Nd4 {[%clk 0:01:42]} 36. Rd3 {[%clk 0:00:41]}  Kf8 {[%clk 0:01:41]} 37. Rd2 {[%clk 0:00:38]}  Ke7 {[%clk 0:01:38]} 38. Nd5+ {[%clk 0:00:38]}  Kd6 {[%clk 0:01:38]} 39. Nb4 {[%clk 0:00:27]}  f6 {[%clk 0:01:34]} 40. Nd3 {[%clk 0:00:27]}  Rc3 {[%clk 0:01:30]} 41. Nb4 {[%clk 0:00:22]}  Rc1 {[%clk 0:01:22]} 42. Nd3 {[%clk 0:00:22]}  Rc2 {[%clk 0:01:16]} 43. Rxc2 {[%clk 0:00:20]}  Nxc2 {[%clk 0:01:17]} 44. Nc1 {[%clk 0:00:18]}  f5 {[%clk 0:01:15]} 45. exf5 {[%clk 0:00:14]}  gxf5 {[%clk 0:01:16]} 46. Kg3 {[%clk 0:00:15]}  g5 {[%clk 0:01:15]} 47. Kf3 {[%clk 0:00:13]}  e4+ {[%clk 0:01:13]} 48. Ke2 {[%clk 0:00:12]}  Kc5 {[%clk 0:01:13]} 49. Kd2 {[%clk 0:00:11]}  Nb4 {[%clk 0:01:13]} 50. g3 {[%clk 0:00:10]}  Kd4 {[%clk 0:01:08]} 51. Ne2+ {[%clk 0:00:10]}  Ke5 {[%clk 0:01:08]} 52. Nc3 {[%clk 0:00:11]}  f4 {[%clk 0:01:08]} 53. gxf4+ {[%clk 0:00:09]}  gxf4 {[%clk 0:01:09]} 54. Ke2 {[%clk 0:00:10]}  f3+ {[%clk 0:01:00]} 55. Kf2 {[%clk 0:00:08]}  Kd4 {[%clk 0:00:46]} 56. Nb5+ {[%clk 0:00:08]}  Kd3 {[%clk 0:00:46]} 57. Nxa3 {[%clk 0:00:03]}  e3+ {[%clk 0:00:46]} 58. Kxf3 {[%clk 0:00:02]}  e2 {[%clk 0:00:47]} 59. Kf2 {[%clk 0:00:01]}  Nxa2 {[%clk 0:00:40]} 60. c5 {[%clk 0:00:01]}  Nc3 {[%clk 0:00:39]} 61. Nc4 {[%clk 0:00:01]}  Ne4+ {[%clk 0:00:34]} 62. Ke1 {[%clk 0:00:02]}  Ng5 {[%clk 0:00:34]} 63. Nb2+ {[%clk 0:00:01]}  Ke3 {[%clk 0:00:33]} 64. Nc4+ {[%clk 0:00:02]}  Kd3 {[%clk 0:00:29]} 65. Ne5+ {[%clk 0:00:02]}  Ke4 {[%clk 0:00:24]} 66. c6 {[%clk 0:00:01]}  Kxe5 {[%clk 0:00:20]} 67. c7 {[%clk 0:00:02]}  Ke4 {[%clk 0:00:14]} 68. c8=Q {[%clk 0:00:02]}  Ke3 {[%clk 0:00:15]} 69. Qe8+ {[%clk 0:00:02]}  Ne4 {[%clk 0:00:14]} 70. Qh5 {[%clk 0:00:01]}  Ng3 {[%clk 0:00:13]} 71. Qg5+ {[%clk 0:00:01]}  Kf3 {[%clk 0:00:13]} 72. Qxg3+ {[%clk 0:00:02]}  Kxg3 {[%clk 0:00:14]} 73. Kxe2 {[%clk 0:00:02]}  Kxh3 {[%clk 0:00:14]} 74. Kf3 {[%clk 0:00:03]}  Kh4 {[%clk 0:00:14]} 75. Kf4 {[%clk 0:00:03]}  Kh5 {[%clk 0:00:14]} 76. Kf5 {[%clk 0:00:04]}  Kh6 {[%clk 0:00:14]} 77. Kf6 {[%clk 0:00:05]}  Kh7 {[%clk 0:00:15]} 78. b4 {[%clk 0:00:06]}  Kh6 {[%clk 0:00:15]} 79. b5 {[%clk 0:00:06]}  Kh5 {[%clk 0:00:16]} 80. b6 {[%clk 0:00:07]}  Kg4 {[%clk 0:00:17]} 81. b7 {[%clk 0:00:08]}  Kf3 {[%clk 0:00:18]} 82. b8=Q {[%clk 0:00:09]}  Ke3 {[%clk 0:00:19]} 83. Qb3+ {[%clk 0:00:09]}  Kd4 {[%clk 0:00:19]} 84. Qb4+ {[%clk 0:00:08]}  Kd5 {[%clk 0:00:20]} 85. Qf4 {[%clk 0:00:08]}  Kc5 {[%clk 0:00:19]} 86. Ke6 {[%clk 0:00:08]}  Kb5 {[%clk 0:00:19]} 87. Kd6 {[%clk 0:00:09]}  Ka5 {[%clk 0:00:19]} 88. Qc1 {[%clk 0:00:09]}  Kb6 {[%clk 0:00:20]} 89. Qb2+ {[%clk 0:00:09]}  Ka7 {[%clk 0:00:20]} 90. Kc7 {[%clk 0:00:09]}  Ka8 {[%clk 0:00:21]} 91. Qb8# {[%clk 0:00:08]} 1-0


[Site "https://www.chess.com"]